[Event "Bamberg-Open 2019"]
[Site "Bamberg"]
[Date "2019.05.30"]
[Round "2.4"]
[White "Hacker, Jonas"]
[Black "Schnicke, Robert"]
[Result "1-0"]
[ECO "C11"]
[WhiteElo "2386"]
[BlackElo "2127"]
[Annotator "ChessBase"]
[PlyCount "109"]
[EventDate "2019.05.12"]
[EventType "swiss"]
[EventCountry "GER"]
[SourceTitle "playchess.com"]
[Source "ChessBase"]
[SourceQuality "1"]
[TimeControl "40/5400+30:900+30"]

1. e4 {[%emt 0:00:00]} e6 {[%emt 0:00:00]} 2. d4 {[%emt 0:00:00]} d5 {[%emt 0:00:11]} 3. Nc3 {[%emt 0:00:00]} Nf6 {[%emt 0:01:29]} 4. e5 {[%emt 0:00:00]} Nfd7 {[%emt 0:00:37]} 5. f4 {[%emt 0:00:00]} c5 {[%emt 0:01:55]} 6. Nf3 {[%emt 0:00:01]} Nc6 {[%emt 0:08:52]} 7. Be3 {[%emt 0:00:20]} Qa5 {[%emt 0:13:30]} 8. a3 {[%emt 0:04:33]} c4 {[%emt 0:05:51]} 9. g4 {[%emt 0:07:57]} Be7 {[%emt 0:03:56]} 10. Bg2 {[%emt 0:06:06]} b5 {[%emt 0:07:21]} 11. f5 {[%emt 0:03:42]} Nb6 {[%emt 0:05:34]} 12. Bd2 {[%emt 0:10:11]} Qa6 {[%emt 0:01:57]} 13. fxe6 {[%emt 0:02:14]} Bxe6 {[%emt 0:00:36]} 14. h3 {[%emt 0:00:28]} Rd8 {[%emt 0:13:20]} 15. O-O {[%emt 0:03:42]} h6 {[%emt 0:02:46]} 16. Ne2 {[%emt 0:01:39]} Qc8 {[%emt 0:01:40]} 17. Nf4 {[%emt 0:07:30]} a5 {[%emt 0:01:55]} 18. c3 {[%emt 0:05:34]} Qd7 {[%emt 0:03:01]} 19. Nh5 {[%emt 0:04:11]} Kf8 {[%emt 0:03:30]} 20. Qe1 {[%emt 0:05:00]} Re8 {[%emt 0:01:35]} 21. Nh4 {[%emt 0:02:12]} Bxh4 {[%emt 0:00:52]} 22. Qxh4 {[%emt 0:00:24]} Qd8 {[%emt 0:05:09]} 23. Qf2 {[%emt 0:03:01]} Kg8 {[%emt 0:03:26]} 24. Qg3 {[%emt 0:08:22]} Ne7 {[%emt 0:04:32]} 25. Bf3 {[%emt 0:06:17]} Ng6 {[%emt 0:00:42]} 26. Bd1 {[%emt 0:01:44]} Nd7 {[%emt 0:00:56]} 27. Bc2 {[%emt 0:02:20]} Ndf8 {[%emt 0:00:28]} 28. Qf2 {[%emt 0:02:37]} Qc8 {[%emt 0:01:08]} 29. Kh1 {[%emt 0:01:28]} Qb7 {[%emt 0:00:43]} 30. Bf5 {[%emt 0:02:19]} Qd7 {[%emt 0:00:58]} 31. Kh2 {[%emt 0:01:35]} Qe7 {[%emt 0:00:55]} 32. a4 {[%emt 0:03:23]} b4 {[%emt 0:00:35]} 33. cxb4 {[%emt 0:00:05]} axb4 {[%emt 0:00:03]} 34. Bxb4 {[%emt 0:00:28]} Qb7 {[%emt 0:02:50]} 35. Bc5 {[%emt 0:02:23]} Rc8 {[%emt 0:00:36]} 36. Bd6 {[%emt 0:01:11]} c3 {[%emt 0:00:43]} 37. b4 {[%emt 0:01:00]} Nh7 {[%emt 0:01:48]} 38. h4 {[%emt 0:01:57]} c2 {[%emt 0:00:48]} 39. Rac1 {[%emt 0:00:39]} Ngf8 {[%emt 0:00:39]} 40. Nf4 {[%emt 0:01:22]} Ng5 {[%emt 0:01:43]} 41. Nxe6 {[%emt 0:08:20]} Nfxe6 {[%emt 0:03:33]} 42. Rxc2 {[%emt 0:01:34]} Rxc2 {[%emt 0:05:05]} 43. Qxc2 {[%emt 0:01:22]} Nxd4 {[%emt 0:02:04]} 44. Qc8+ {[%emt 0:00:15]} Qxc8 {[%emt 0:00:06]} 45. Bxc8 {[%emt 0:00:03]} Ngf3+ {[%emt 0:02:07]} 46. Kg3 {[%emt 0:01:58]} Nd2 {[%emt 0:00:58]} 47. Rd1 {[%emt 0:00:08]} Ne4+ {[%emt 0:00:25]} 48. Kg2 {[%emt 0:00:20]} Ne2 {[%emt 0:00:50]} 49. a5 {[%emt 0:01:07]} g6 {[%emt 0:00:42]} 50. a6 {[%emt 0:01:33]} Kh7 {[%emt 0:01:02]} 51. Bb7 {[%emt 0:00:12]} N4c3 {[%emt 0:00:13]} 52. Rd2 {[%emt 0:00:39]} d4 {[%emt 0:02:31]} 53. a7 {[%emt 0:00:32]} Nc1 54. Rxd4 Nb5 55. Rd1 1-0

[Event "Bamberg-Open 2019"]
[Site "Bamberg"]
[Date "2019.05.30"]
[Round "2.5"]
[White "Ziegenfuss, Antonia"]
[Black "Langheinrich, Ferenc"]
[Result "0-1"]
[ECO "A50"]
[WhiteElo "2111"]
[BlackElo "2379"]
[Annotator "ChessBase"]
[PlyCount "60"]
[EventDate "2019.05.12"]
[EventType "swiss"]
[EventCountry "GER"]
[SourceTitle "playchess.com"]
[Source "ChessBase"]
[SourceQuality "1"]
[TimeControl "40/5400+30:900+30"]

1. d4 {[%emt 0:00:00]} Nf6 {[%emt 0:00:00]} 2. c4 {[%emt 0:00:00]} b6 {[%emt 0:00:04]} 3. Nc3 {[%emt 0:01:01]} Bb7 {[%emt 0:00:06]} 4. f3 {[%emt 0:00:53]} d5 {[%emt 0:05:35]} 5. cxd5 {[%emt 0:04:18]} Nxd5 {[%emt 0:00:19]} 6. e4 {[%emt 0:00:26]} Nxc3 {[%emt 0:00:06]} 7. bxc3 {[%emt 0:00:05]} e6 {[%emt 0:00:09]} 8. Bc4 {[%emt 0:05:48]} c5 {[%emt 0:03:18]} 9. Ne2 {[%emt 0:04:20]} cxd4 {[%emt 0:03:32]} 10. cxd4 {[%emt 0:00:30]} Bb4+ {[%emt 0:00:12]} 11. Bd2 {[%emt 0:01:41]} Bxd2+ {[%emt 0:00:06]} 12. Qxd2 {[%emt 0:00:11]} O-O {[%emt 0:00:22]} 13. O-O {[%emt 0:08:19]} Nc6 {[%emt 0:00:07]} 14. Rfd1 {[%emt 0:01:20]} Na5 {[%emt 0:16:20]} 15. Bd3 {[%emt 0:06:24]} Qd6 {[%emt 0:07:14]} 16. Qg5 {[%emt 0:12:45]} h6 {[%emt 0:06:42]} 17. Qg4 {[%emt 0:10:07]} Rac8 {[%emt 0:14:12]} 18. e5 {[%emt 0:08:49]} Qe7 {[%emt 0:00:41]} 19. Ng3 {[%emt 0:01:50]} Qg5 {[%emt 0:01:05]} 20. Qxg5 {[%emt 0:09:55]} hxg5 {[%emt 0:00:25]} 21. Rf1 {[%emt 0:04:34]} Rfd8 {[%emt 0:02:06]} 22. Ne2 {[%emt 0:04:06]} Nc6 {[%emt 0:01:02]} 23. f4 {[%emt 0:05:33]} Nxd4 {[%emt 0:05:53]} 24. fxg5 {[%emt 0:01:49]} Nf3+ {[%emt 0:01:47]} 25. gxf3 {[%emt 0:00:42]} Rxd3 {[%emt 0:00:06]} 26. Nf4 {[%emt 0:03:10]} Rd4 {[%emt 0:01:01]} 27. Ng2 {[%emt 0:01:55]} Rc5 {[%emt 0:01:40]} 28. f4 {[%emt 0:01:37]} Rc2 {[%emt 0:01:34]} 29. Rf2 {[%emt 0:01:20]} Rxf2 {[%emt 0:00:07]} 30. Kxf2 {[%emt 0:00:03]} Rd2+ {[%emt 0:00:06]} 0-1

[Event "Bamberg-Open 2019"]
[Site "Bamberg"]
[Date "2019.05.30"]
[Round "2.6"]
[White "Kurayan, Ruslan"]
[Black "Schliebener, Stephan"]
[Result "1/2-1/2"]
[ECO "B43"]
[WhiteElo "2374"]
[BlackElo "2117"]
[Annotator "ChessBase"]
[PlyCount "55"]
[EventDate "2019.05.12"]
[EventType "swiss"]
[EventCountry "GER"]
[SourceTitle "playchess.com"]
[Source "ChessBase"]
[SourceQuality "1"]
[TimeControl "40/5400+30:900+30"]

1. e4 {[%emt 0:00:00]} c5 {[%emt 0:00:00]} 2. Nf3 {[%emt 0:00:00]} e6 {[%emt 0:00:00]} 3. d4 {[%emt 0:00:00]} cxd4 {[%emt 0:00:00]} 4. Nxd4 {[%emt 0:00:00]} a6 {[%emt 0:00:00]} 5. Nc3 {[%emt 0:00:00]} b5 {[%emt 0:00:06]} 6. Be3 {[%emt 0:04:49]} Bb7 {[%emt 0:01:42]} 7. f3 {[%emt 0:01:45]} Qc7 {[%emt 0:01:36]} 8. Qd2 {[%emt 0:01:45]} Nf6 {[%emt 0:01:19]} 9. O-O-O {[%emt 0:00:52]} Bb4 {[%emt 0:02:24]} 10. Kb1 {[%emt 0:25:13]} O-O {[%emt 0:02:24]} 11. g4 {[%emt 0:13:00]} d5 {[%emt 0:11:34]} 12. e5 {[%emt 0:25:49]} Nfd7 {[%emt 0:00:21]} 13. f4 {[%emt 0:01:10]} Nc5 {[%emt 0:01:36]} 14. Bd3 {[%emt 0:09:24]} Na4 {[%emt 0:02:10]} 15. Rdf1 {[%emt 0:07:06]} Bxc3 {[%emt 0:03:14]} 16. bxc3 {[%emt 0:00:15]} Nxc3+ {[%emt 0:00:08]} 17. Kb2 {[%emt 0:00:52]} b4 {[%emt 0:00:41]} 18. Ra1 {[%emt 0:00:54]} Nd7 {[%emt 0:02:12]} 19. a3 {[%emt 0:02:54]} a5 {[%emt 0:03:31]} 20. Rhf1 {[%emt 0:00:04]} Nc5 {[%emt 0:03:25]} 21. axb4 {[%emt 0:02:24]} axb4 {[%emt 0:01:00]} 22. Nb3 {[%emt 0:00:01]} Nxb3 {[%emt 0:05:58]} 23. cxb3 {[%emt 0:00:10]} Rxa1 {[%emt 0:00:37]} 24. Rxa1 {[%emt 0:00:05]} Rc8 {[%emt 0:06:08]} 25. Bd4 {[%emt 0:01:10]} h6 {[%emt 0:04:05]} 26. Rc1 {[%emt 0:02:00]} Qa5 {[%emt 0:00:36]} 27. Ra1 {[%emt 0:00:32]} Qc7 {[%emt 0:00:13]} 28. Rc1 1/2-1/2

[Event "Bamberg-Open 2019"]
[Site "Bamberg"]
[Date "2019.05.30"]
[Round "2.7"]
[White "Kunath, Tim"]
[Black "Hirneise, Jens"]
[Result "0-1"]
[ECO "B56"]
[WhiteElo "2103"]
[BlackElo "2375"]
[Annotator "ChessBase"]
[PlyCount "90"]
[EventDate "2019.05.12"]
[EventType "swiss"]
[EventCountry "GER"]
[SourceTitle "playchess.com"]
[Source "ChessBase"]
[SourceQuality "1"]
[TimeControl "40/5400+30:900+30"]

1. e4 {[%emt 0:00:00]} c5 {[%emt 0:00:00]} 2. Nf3 {[%emt 0:00:00]} d6 {[%emt 0:00:00]} 3. d4 {[%emt 0:00:00]} cxd4 {[%emt 0:00:00]} 4. Nxd4 {[%emt 0:00:00]} Nf6 {[%emt 0:00:00]} 5. Nc3 {[%emt 0:00:01]} Bd7 {[%emt 0:00:17]} 6. Bg5 {[%emt 0:02:04]} e6 {[%emt 0:00:12]} 7. Qd2 {[%emt 0:05:08]} h6 {[%emt 0:00:07]} 8. Bxf6 {[%emt 0:00:32]} Qxf6 {[%emt 0:00:03]} 9. Ndb5 {[%emt 0:00:39]} Bxb5 {[%emt 0:00:12]} 10. Bxb5+ {[%emt 0:04:00]} Nc6 {[%emt 0:00:08]} 11. O-O {[%emt 0:00:32]} Be7 {[%emt 0:00:26]} 12. Rae1 {[%emt 0:21:20]} O-O {[%emt 0:01:27]} 13. f4 {[%emt 0:01:27]} Qd4+ {[%emt 0:00:38]} 14. Qxd4 {[%emt 0:08:28]} Nxd4 {[%emt 0:00:02]} 15. Bd3 {[%emt 0:00:11]} Rfc8 {[%emt 0:04:06]} 16. Rf2 {[%emt 0:03:23]} a6 {[%emt 0:04:06]} 17. Nd1 {[%emt 0:05:45]} b5 {[%emt 0:02:52]} 18. c3 {[%emt 0:00:15]} Nc6 {[%emt 0:00:14]} 19. Ne3 {[%emt 0:03:07]} b4 {[%emt 0:04:21]} 20. c4 {[%emt 0:01:56]} Bf6 {[%emt 0:02:19]} 21. Kf1 {[%emt 0:00:28]} a5 {[%emt 0:02:06]} 22. Rd2 {[%emt 0:06:01]} a4 {[%emt 0:02:57]} 23. Bb1 {[%emt 0:01:36]} a3 {[%emt 0:09:53]} 24. b3 {[%emt 0:00:37]} Bc3 {[%emt 0:07:00]} 25. Rxd6 {[%emt 0:00:06]} Bxe1 {[%emt 0:00:16]} 26. Kxe1 {[%emt 0:00:03]} Na5 {[%emt 0:00:16]} 27. Bc2 {[%emt 0:01:50]} Rd8 {[%emt 0:03:29]} 28. Rb6 {[%emt 0:01:35]} Rab8 {[%emt 0:03:06]} 29. Ra6 {[%emt 0:01:29]} Nb7 {[%emt 0:02:59]} 30. Rc6 {[%emt 0:01:38]} Rdc8 {[%emt 0:04:47]} 31. Rxc8+ {[%emt 0:04:38]} Rxc8 {[%emt 0:00:02]} 32. Ng4 {[%emt 0:03:30]} Kf8 {[%emt 0:02:16]} 33. Ne5 {[%emt 0:00:36]} Nc5 {[%emt 0:01:38]} 34. Ke2 {[%emt 0:01:25]} f6 {[%emt 0:03:45]} 35. Nf3 {[%emt 0:03:15]} g5 {[%emt 0:02:01]} 36. g3 {[%emt 0:05:35]} gxf4 {[%emt 0:03:04]} 37. gxf4 {[%emt 0:00:01]} Ke7 {[%emt 0:00:33]} 38. Kf2 {[%emt 0:06:19]} Rd8 {[%emt 0:03:39]} 39. Ke3 {[%emt 0:01:03]} Rg8 {[%emt 0:00:16]} 40. Kf2 {[%emt 0:01:01]} Rg4 {[%emt 0:01:08]} 41. Nd4 {[%emt 0:22:46]} Rxf4+ {[%emt 0:16:24]} 42. Kg3 {[%emt 0:01:03]} e5 {[%emt 0:01:33]} 43. Nc6+ {[%emt 0:00:00]} Ke6 {[%emt 0:00:00]} 44. Nxb4 {[%emt 0:00:00]} Nxe4+ {[%emt 0:00:00]} 45. Kg2 {[%emt 0:00:00]} Nc3 {[%emt 0:00:00]} 0-1

[Event "Bamberg-Open 2019"]
[Site "Bamberg"]
[Date "2019.05.30"]
[Round "2.8"]
[White "Scholz, Christian"]
[Black "Jergler, Karl-Heinz"]
[Result "1-0"]
[ECO "D83"]
[WhiteElo "2372"]
[BlackElo "2099"]
[Annotator "ChessBase"]
[PlyCount "61"]
[EventDate "2019.05.12"]
[EventType "swiss"]
[EventCountry "GER"]
[SourceTitle "playchess.com"]
[Source "ChessBase"]
[SourceQuality "1"]
[TimeControl "40/5400+30:900+30"]

1. d4 {[%emt 0:00:00]} Nf6 {[%emt 0:00:00]} 2. c4 {[%emt 0:00:00]} g6 {[%emt 0:00:00]} 3. Nc3 {[%emt 0:00:00]} d5 {[%emt 0:00:00]} 4. Bf4 {[%emt 0:00:00]} Bg7 {[%emt 0:00:00]} 5. e3 {[%emt 0:00:00]} O-O {[%emt 0:00:00]} 6. Rc1 {[%emt 0:00:00]} c5 {[%emt 0:00:00]} 7. dxc5 {[%emt 0:00:00]} Na6 {[%emt 0:00:14]} 8. cxd5 {[%emt 0:01:15]} Nxc5 {[%emt 0:01:44]} 9. Bc4 {[%emt 0:16:24]} Qa5 {[%emt 0:03:18]} 10. a3 {[%emt 0:03:48]} Nce4 {[%emt 0:05:58]} 11. Nge2 {[%emt 0:00:16]} Nxc3 {[%emt 0:05:43]} 12. Nxc3 {[%emt 0:00:20]} Ne4 {[%emt 0:00:27]} 13. Qb3 {[%emt 0:06:03]} Nxc3 {[%emt 0:09:46]} 14. bxc3 {[%emt 0:00:09]} Bf5 {[%emt 0:00:09]} 15. O-O {[%emt 0:04:05]} Qc5 {[%emt 0:02:32]} 16. Rfd1 {[%emt 0:01:52]} Rac8 {[%emt 0:01:53]} 17. Be2 {[%emt 0:03:24]} Rfd8 {[%emt 0:19:37]} 18. Bf3 {[%emt 0:12:10]} b5 {[%emt 0:07:01]} 19. e4 {[%emt 0:16:53]} Bd7 {[%emt 0:00:58]} 20. Be2 {[%emt 0:02:09]} a5 {[%emt 0:13:16]} 21. Be3 {[%emt 0:03:00]} Qd6 {[%emt 0:02:21]} 22. Bxb5 {[%emt 0:04:24]} Bxb5 {[%emt 0:06:53]} 23. Qxb5 {[%emt 0:00:07]} Qxa3 {[%emt 0:05:15]} 24. Bb6 {[%emt 0:05:02]} Rf8 {[%emt 0:04:02]} 25. c4 {[%emt 0:08:10]} Bc3 {[%emt 0:05:39]} 26. c5 {[%emt 0:01:34]} Bb4 {[%emt 0:00:50]} 27. c6 {[%emt 0:05:44]} Qa2 {[%emt 0:01:09]} 28. Qd3 {[%emt 0:02:11]} Qb2 {[%emt 0:02:05]} 29. Bd4 {[%emt 0:00:14]} Qa3 {[%emt 0:00:04]} 30. Qc2 {[%emt 0:02:02]} Bd6 {[%emt 0:01:56]} 31. e5 {[%emt 0:00:55]} 1-0

[Event "Bamberg-Open 2019"]
[Site "Bamberg"]
[Date "2019.05.30"]
[Round "2.9"]
[White "Sukaylo, Aleksey"]
[Black "Gegenfurtner, Juergen"]
[Result "0-1"]
[ECO "C54"]
[WhiteElo "2097"]
[BlackElo "2323"]
[Annotator "ChessBase"]
[PlyCount "68"]
[EventDate "2019.05.12"]
[EventType "swiss"]
[EventCountry "GER"]
[SourceTitle "playchess.com"]
[Source "ChessBase"]
[SourceQuality "1"]
[TimeControl "40/5400+30:900+30"]

1. e4 {[%emt 0:00:00]} e5 {[%emt 0:00:00]} 2. Nf3 {[%emt 0:00:00]} Nc6 {[%emt 0:00:00]} 3. Bc4 {[%emt 0:00:00]} Bc5 {[%emt 0:00:00]} 4. c3 {[%emt 0:00:00]} Nf6 {[%emt 0:00:00]} 5. d4 {[%emt 0:00:00]} exd4 {[%emt 0:00:02]} 6. cxd4 {[%emt 0:00:00]} Bb4+ {[%emt 0:00:15]} 7. Bd2 {[%emt 0:00:00]} Nxe4 {[%emt 0:00:38]} 8. Bxb4 {[%emt 0:00:08]} Nxb4 {[%emt 0:00:06]} 9. Bxf7+ {[%emt 0:00:09]} Kxf7 {[%emt 0:00:04]} 10. Qb3+ {[%emt 0:00:07]} Kf8 {[%emt 0:00:17]} 11. Qxb4+ {[%emt 0:02:05]} Qe7 {[%emt 0:00:05]} 12. Qa3 {[%emt 0:01:45]} Nf6+ {[%emt 0:05:13]} 13. Qxe7+ {[%emt 0:09:28]} Kxe7 {[%emt 0:00:05]} 14. Nc3 {[%emt 0:00:09]} d6 {[%emt 0:03:53]} 15. h3 {[%emt 0:05:37]} Bd7 {[%emt 0:01:14]} 16. O-O-O {[%emt 0:03:01]} Rae8 {[%emt 0:01:17]} 17. Ng5 {[%emt 0:03:46]} Rhf8 {[%emt 0:02:14]} 18. f3 {[%emt 0:06:29]} h6 {[%emt 0:02:34]} 19. Nge4 {[%emt 0:00:12]} Nh5 {[%emt 0:03:52]} 20. b4 {[%emt 0:11:43]} Kd8 {[%emt 0:05:39]} 21. Kb2 {[%emt 0:03:42]} Nf4 {[%emt 0:02:35]} 22. Rd2 {[%emt 0:00:09]} b6 {[%emt 0:02:30]} 23. d5 {[%emt 0:11:25]} g5 {[%emt 0:08:26]} 24. Nd1 {[%emt 0:08:39]} Bf5 {[%emt 0:08:22]} 25. Ndc3 {[%emt 0:07:48]} Re5 {[%emt 0:04:14]} 26. Rhd1 {[%emt 0:01:30]} a6 {[%emt 0:04:17]} 27. a3 {[%emt 0:07:36]} Bh7 {[%emt 0:05:36]} 28. Kb3 {[%emt 0:05:26]} Bg8 {[%emt 0:01:06]} 29. b5 {[%emt 0:03:26]} axb5 {[%emt 0:01:37]} 30. Kb4 {[%emt 0:00:25]} Kd7 {[%emt 0:01:43]} 31. Kxb5 {[%emt 0:02:04]} Nxd5 {[%emt 0:02:05]} 32. Nxd5 {[%emt 0:06:47]} Bxd5 {[%emt 0:00:16]} 33. Kb4 {[%emt 0:00:11]} Bxe4 {[%emt 0:00:28]} 34. Re1 {[%emt 0:00:28]} Rd5 {[%emt 0:01:22]} 0-1

[Event "Bamberg-Open 2019"]
[Site "Bamberg"]
[Date "2019.05.30"]
[Round "2.10"]
[White "Troyke, Christian"]
[Black "Schenk, Alexander"]
[Result "0-1"]
[ECO "A14"]
[WhiteElo "2328"]
[BlackElo "2096"]
[Annotator "ChessBase"]
[PlyCount "108"]
[EventDate "2019.05.12"]
[EventType "swiss"]
[EventCountry "GER"]
[SourceTitle "playchess.com"]
[Source "ChessBase"]
[SourceQuality "1"]
[TimeControl "40/5400+30:900+30"]

1. g3 {[%emt 0:00:00]} d5 {[%emt 0:00:00]} 2. Bg2 {[%emt 0:00:00]} Nf6 {[%emt 0:00:00]} 3. c4 {[%emt 0:00:00]} e6 {[%emt 0:00:00]} 4. Nf3 {[%emt 0:00:04]} Be7 {[%emt 0:00:33]} 5. O-O {[%emt 0:00:14]} O-O {[%emt 0:00:12]} 6. b3 {[%emt 0:01:37]} c5 {[%emt 0:05:27]} 7. e3 {[%emt 0:02:36]} Nc6 {[%emt 0:00:19]} 8. Bb2 {[%emt 0:01:37]} d4 {[%emt 0:08:26]} 9. exd4 {[%emt 0:00:40]} cxd4 {[%emt 0:00:04]} 10. d3 {[%emt 0:04:26]} Ne8 {[%emt 0:04:14]} 11. Na3 {[%emt 0:10:38]} e5 {[%emt 0:05:28]} 12. Nc2 {[%emt 0:00:27]} f6 {[%emt 0:00:46]} 13. Qd2 {[%emt 0:03:39]} a5 {[%emt 0:02:45]} 14. Rab1 {[%emt 0:03:09]} Nc7 {[%emt 0:01:23]} 15. a3 {[%emt 0:11:26]} Na6 {[%emt 0:02:20]} 16. Ba1 {[%emt 0:01:59]} Qd6 {[%emt 0:06:41]} 17. Qe2 {[%emt 0:03:56]} f5 {[%emt 0:12:01]} 18. b4 {[%emt 0:06:13]} axb4 {[%emt 0:00:39]} 19. axb4 {[%emt 0:00:08]} Naxb4 {[%emt 0:01:14]} 20. Nxb4 {[%emt 0:00:20]} Nxb4 {[%emt 0:00:05]} 21. Nxe5 {[%emt 0:05:35]} Bf6 {[%emt 0:05:39]} 22. f4 {[%emt 0:01:46]} Ra2 {[%emt 0:14:29]} 23. Rb2 {[%emt 0:00:28]} Rxb2 {[%emt 0:00:38]} 24. Bxb2 {[%emt 0:00:08]} Nc6 {[%emt 0:00:22]} 25. Bd5+ {[%emt 0:06:33]} Be6 {[%emt 0:00:08]} 26. Ba3 {[%emt 0:00:05]} Qxa3 {[%emt 0:01:05]} 27. Bxe6+ {[%emt 0:00:06]} Kh8 {[%emt 0:00:05]} 28. Ng6+ {[%emt 0:00:58]} hxg6 {[%emt 0:00:17]} 29. Qg2 {[%emt 0:00:04]} Bh4 {[%emt 0:00:40]} 30. gxh4 {[%emt 0:05:25]} Qe7 {[%emt 0:13:49]} 31. Bd5 {[%emt 0:03:04]} Nb4 {[%emt 0:01:56]} 32. Bxb7 {[%emt 0:11:28]} Qe3+ {[%emt 0:01:16]} 33. Kh1 {[%emt 0:01:17]} Qxd3 {[%emt 0:01:26]} 34. Rg1 {[%emt 0:01:23]} Qxc4 {[%emt 0:06:15]} 35. h5 {[%emt 0:03:30]} Qc7 {[%emt 0:03:00]} 36. hxg6 {[%emt 0:01:19]} Kg8 {[%emt 0:01:34]} 37. Rb1 {[%emt 0:03:49]} Re8 {[%emt 0:01:57]} 38. Bd5+ {[%emt 0:04:22]} Kf8 {[%emt 0:00:11]} 39. Bf7 {[%emt 0:00:22]} Re4 {[%emt 0:01:12]} 40. Qh3 {[%emt 0:02:35]} Qc6 {[%emt 0:00:35]} 41. Qh8+ {[%emt 0:03:57]} Ke7 {[%emt 0:00:06]} 42. Qh4+ {[%emt 0:00:06]} Kd7 {[%emt 0:02:20]} 43. Kg1 {[%emt 0:01:51]} d3 {[%emt 0:02:34]} 44. Qf2 {[%emt 0:02:22]} Kd6 {[%emt 0:01:19]} 45. Qh4 {[%emt 0:01:41]} Qb6+ {[%emt 0:00:55]} 46. Kh1 {[%emt 0:02:24]} Re2 {[%emt 0:01:43]} 47. Qg3 {[%emt 0:00:51]} Qc6+ {[%emt 0:01:46]} 48. Kg1 {[%emt 0:00:08]} Qc5+ {[%emt 0:00:04]} 49. Kh1 {[%emt 0:00:43]} d2 {[%emt 0:01:26]} 50. Rd1 {[%emt 0:02:03]} Qc1 {[%emt 0:00:47]} 51. Bb3 {[%emt 0:00:17]} Qc6+ {[%emt 0:01:49]} 52. Kg1 {[%emt 0:00:13]} Qe4 {[%emt 0:00:12]} 53. Kf1 {[%emt 0:01:30]} Nd3 {[%emt 0:00:34]} 54. Bc2 {[%emt 0:00:27]} Re1+ {[%emt 0:01:41]} 0-1

[Event "Bamberg-Open 2019"]
[Site "Bamberg"]
[Date "2019.05.30"]
[Round "2.11"]
[White "Spitzl, Vinzent"]
[Black "Fiedorek, Michal"]
[Result "1-0"]
[ECO "B54"]
[WhiteElo "2263"]
[BlackElo "2088"]
[Annotator "ChessBase"]
[PlyCount "103"]
[EventDate "2019.05.12"]
[EventType "swiss"]
[EventCountry "GER"]
[SourceTitle "playchess.com"]
[Source "ChessBase"]
[SourceQuality "1"]
[TimeControl "40/5400+30:900+30"]

1. e4 {[%emt 0:14:49]} c5 {[%emt 0:00:00]} 2. Nf3 {[%emt 0:00:06]} d6 {[%emt 0:00:09]} 3. d4 {[%emt 0:00:08]} cxd4 {[%emt 0:00:08]} 4. Nxd4 {[%emt 0:00:03]} Nf6 {[%emt 0:00:21]} 5. f3 {[%emt 0:00:04]} e5 {[%emt 0:00:28]} 6. Nb3 {[%emt 0:00:04]} Be7 {[%emt 0:00:13]} 7. c4 {[%emt 0:00:19]} a5 {[%emt 0:00:10]} 8. Be3 {[%emt 0:00:45]} a4 {[%emt 0:00:59]} 9. N3d2 {[%emt 0:00:08]} O-O {[%emt 0:00:27]} 10. Nc3 {[%emt 0:00:30]} Qa5 {[%emt 0:00:45]} 11. Ndb1 {[%emt 0:03:24]} Be6 {[%emt 0:13:18]} 12. Qd2 {[%emt 0:00:56]} Rc8 {[%emt 0:10:57]} 13. Na3 {[%emt 0:00:32]} Ne8 {[%emt 0:00:42]} 14. Nd5 {[%emt 0:14:20]} Bd8 {[%emt 0:07:25]} 15. Bd3 {[%emt 0:00:51]} Nd7 {[%emt 0:04:32]} 16. Qxa5 {[%emt 0:02:52]} Bxa5+ {[%emt 0:00:12]} 17. Ke2 {[%emt 0:00:06]} Kf8 {[%emt 0:26:12]} 18. Rac1 {[%emt 0:02:23]} Bxd5 {[%emt 0:01:38]} 19. cxd5 {[%emt 0:00:32]} Bb4 {[%emt 0:02:41]} 20. Bb5 {[%emt 0:02:02]} Nef6 {[%emt 0:11:17]} 21. g4 {[%emt 0:03:10]} Bxa3 {[%emt 0:06:17]} 22. bxa3 {[%emt 0:00:48]} Ke7 {[%emt 0:00:16]} 23. Kd2 {[%emt 0:03:05]} Nc5 {[%emt 0:04:40]} 24. Rc4 {[%emt 0:01:46]} Nfd7 {[%emt 0:02:51]} 25. Bxd7 {[%emt 0:05:11]} Kxd7 {[%emt 0:01:20]} 26. Rb1 {[%emt 0:00:13]} Rc7 {[%emt 0:02:11]} 27. Bxc5 {[%emt 0:04:11]} dxc5 {[%emt 0:00:07]} 28. Rb5 {[%emt 0:00:05]} Ra6 {[%emt 0:00:43]} 29. Rc2 {[%emt 0:03:41]} g5 {[%emt 0:01:46]} 30. Kd3 {[%emt 0:00:58]} Rf6 {[%emt 0:01:07]} 31. Ke3 {[%emt 0:00:28]} Rh6 {[%emt 0:00:32]} 32. Ra5 {[%emt 0:01:12]} Rb6 {[%emt 0:00:46]} 33. Rxa4 {[%emt 0:01:05]} Rb1 {[%emt 0:00:31]} 34. Rac4 {[%emt 0:01:51]} Rh1 {[%emt 0:00:27]} 35. a4 {[%emt 0:03:16]} b6 {[%emt 0:00:29]} 36. Rb2 {[%emt 0:00:13]} Ra7 {[%emt 0:00:30]} 37. Rxb6 {[%emt 0:04:01]} Rxh2 {[%emt 0:00:23]} 38. a3 {[%emt 0:00:46]} Ra2 {[%emt 0:00:43]} 39. Rb3 {[%emt 0:00:05]} Kd6 {[%emt 0:00:35]} 40. Rb6+ {[%emt 0:04:18]} Kd7 {[%emt 0:00:14]} 41. Rxc5 {[%emt 0:16:13]} Rxa3+ {[%emt 0:08:05]} 42. Kf2 {[%emt 0:00:00]} R3xa4 {[%emt 0:01:40]} 43. Rcb5 {[%emt 0:00:00]} Ra2+ {[%emt 0:03:44]} 44. Kg3 {[%emt 0:00:00]} R7a6 {[%emt 0:02:31]} 45. Rb7+ {[%emt 0:00:00]} Ke8 {[%emt 0:00:25]} 46. Rb8+ {[%emt 0:00:00]} Ke7 {[%emt 0:00:31]} 47. R5b7+ {[%emt 0:00:00]} Kf6 {[%emt 0:01:35]} 48. Rf8 {[%emt 0:00:00]} Kg6 {[%emt 0:00:51]} 49. Rfxf7 {[%emt 0:00:00]} Rd2 {[%emt 0:00:32]} 50. Rg7+ {[%emt 0:00:00]} Kh6 {[%emt 0:00:05]} 51. Rxh7+ {[%emt 0:00:00]} Kg6 {[%emt 0:00:04]} 52. Rbg7+ 1-0